[Event "GER-ch Youth-ODJM 2022 B"]
[Site "Willingen"]
[Date "2022.06.11"]
[Round "9.4"]
[White "Hoffmann, Alexander"]
[Black "Kalina, Lena"]
[Result "1-0"]
[ECO "A22"]
[WhiteElo "1638"]
[BlackElo "1735"]
[Annotator "NA RC COMBH"]
[PlyCount "95"]
[EventDate "2022.06.05"]
[EventType "swiss"]
[EventRounds "9"]
[EventCountry "GER"]
[SourceTitle "playchess.com"]
[Source "ChessBase"]
[SourceQuality "1"]
[TimeControl "40/4500+30:900+30"]

1. c4 {[%emt 0:00:00]} e5 {[%emt 0:00:00]} 2. Nc3 {[%emt 0:00:00]} Nf6 {[%emt 0:00:00]} 3. g3 {[%emt 0:00:00]} c6 {[%emt 0:00:00]} 4. d3 {[%emt 0:00:10]} d5 {[%emt 0:00:45]} 5. cxd5 {[%emt 0:03:42]} cxd5 {[%emt 0:04:01]} 6. Bg2 {[%emt 0:07:58]} Nc6 {[%emt 0:10:39]} 7. f4 {[%emt 0:01:55]} Be6 {[%emt 0:07:45]} 8. fxe5 {[%emt 0:06:10]} Nxe5 {[%emt 0:01:10]} 9. Bf4 {[%emt 0:06:00]} Ng6 {[%emt 0:03:34]} 10. Bg5 {[%emt 0:08:12]} Be7 {[%emt 0:15:35]} 11. d4 {[%emt 0:10:41]} Ng4 {[%emt 0:14:40]} 12. Bd2 {[%emt 0:13:10]} O-O {[%emt 0:07:51]} 13. Nf3 {[%emt 0:06:03]} h6 {[%emt 0:02:25]} 14. O-O {[%emt 0:04:03]} Rc8 {[%emt 0:02:52]} 15. Ne1 {[%emt 0:01:42]} Qb6 {[%emt 0:01:59]} 16. Nc2 {[%emt 0:03:15]} Rfd8 {[%emt 0:01:03]} 17. e3 {[%emt 0:01:40]} Nf6 {[%emt 0:01:03]} 18. Rb1 {[%emt 0:00:48]} h5 {[%emt 0:01:13]} 19. Be1 {[%emt 0:03:59]} Qc7 {[%emt 0:03:57]} 20. Rc1 {[%emt 0:01:15]} Qd7 {[%emt 0:01:27]} 21. Bf2 {[%emt 0:00:59]} Bh3 {[%emt 0:00:42]} 22. Ne1 {[%emt 0:00:14]} Bxg2 {[%emt 0:00:48]} 23. Nxg2 {[%emt 0:00:02]} Qh3 {[%emt 0:01:07]} 24. Kh1 {[%emt 0:01:19]} Bd6 {[%emt 0:01:49]} 25. Ne2 {[%emt 0:00:20]} Qd7 {[%emt 0:00:33]} 26. Nc3 {[%emt 0:02:00]} Ng4 {[%emt 0:00:46]} 27. Qe2 {[%emt 0:00:30]} Bb8 {[%emt 0:00:18]} 28. Bg1 {[%emt 0:00:45]} Qe7 {[%emt 0:00:46]} 29. h3 {[%emt 0:01:20]} Nf6 {[%emt 0:00:11]} 30. Bh2 {[%emt 0:00:06]} Qe6 {[%emt 0:00:17]} 31. Rf3 {[%emt 0:01:52]} Qxh3 {[%emt 0:00:42]} 32. Qf2 {[%emt 0:00:41]} Qd7 {[%emt 0:00:50]} 33. Rf1 {[%emt 0:00:17]} Ng4 {[%emt 0:00:18]} 34. Qe2 {[%emt 0:00:15]} f6 {[%emt 0:00:32]} 35. Rf5 {[%emt 0:00:28]} Nxh2 {[%emt 0:00:23]} 36. Kxh2 {[%emt 0:00:02]} h4 {[%emt 0:00:35]} 37. Qh5 {[%emt 0:01:30]} Bxg3+ {[%emt 0:00:37]} 38. Kg1 {[%emt 0:00:04]} Ne7 {[%emt 0:00:37]} 39. Rxf6 {[%emt 0:00:41]} gxf6 {[%emt 0:00:34]} 40. Rxf6 {[%emt 0:00:02]} Nf5 {[%emt 0:00:32]} 41. Rxf5 {[%emt 0:00:00]} Rc6 {[%emt 0:00:06]} 42. Rg5+ {[%emt 0:00:00]} Kf8 {[%emt 0:00:46]} 43. Qh8+ {[%emt 0:00:00]} Ke7 {[%emt 0:00:35]} 44. Qh7+ {[%emt 0:00:00]} Kd6 {[%emt 0:01:23]} 45. Nb5+ {[%emt 0:00:16]} Ke6 {[%emt 0:00:07]} 46. Qh6+ {[%emt 0:00:23]} Ke7 {[%emt 0:00:34]} 47. Rg7+ {[%emt 0:00:11]} Ke8 {[%emt 0:00:20]} 48. Qh8# {[%emt 0:00:14]} 1-0

[Event "GER-ch Youth-ODJM 2022 B"]
[Site "Willingen"]
[Date "2022.06.11"]
[Round "9.6"]
[White "Abou Wally, Adrian"]
[Black "von Jan, Lena"]
[Result "1-0"]
[ECO "C54"]
[WhiteElo "1601"]
[BlackElo "1634"]
[Annotator "NA RC COMBH"]
[PlyCount "89"]
[EventDate "2022.06.05"]
[EventType "swiss"]
[EventRounds "9"]
[EventCountry "GER"]
[SourceTitle "playchess.com"]
[Source "ChessBase"]
[SourceQuality "1"]
[TimeControl "40/4500+30:900+30"]

1. e4 {[%emt 0:00:00]} e5 {[%emt 0:00:00]} 2. Nf3 {[%emt 0:00:00]} Nc6 {[%emt 0:00:00]} 3. Bc4 {[%emt 0:00:00]} Bc5 {[%emt 0:00:00]} 4. c3 {[%emt 0:00:00]} Nf6 {[%emt 0:00:00]} 5. b4 {[%emt 0:00:00]} Bb6 {[%emt 0:00:00]} 6. d3 {[%emt 0:00:00]} d6 {[%emt 0:00:00]} 7. Nbd2 {[%emt 0:00:00]} O-O {[%emt 0:00:00]} 8. O-O {[%emt 0:00:00]} h6 {[%emt 0:00:07]} 9. Bb3 {[%emt 0:00:00]} a6 {[%emt 0:04:08]} 10. Nc4 {[%emt 0:00:00]} Ba7 {[%emt 0:01:21]} 11. Be3 {[%emt 0:02:08]} b5 {[%emt 0:03:04]} 12. Ncd2 {[%emt 0:11:57]} Re8 {[%emt 0:07:13]} 13. a4 {[%emt 0:11:46]} Bxe3 {[%emt 0:03:57]} 14. fxe3 {[%emt 0:00:06]} Bb7 {[%emt 0:01:17]} 15. Qe1 {[%emt 0:30:34]} Qd7 {[%emt 0:08:33]} 16. Nh4 {[%emt 0:05:52]} Ne7 {[%emt 0:18:43]} 17. Qg3 {[%emt 0:04:53]} Kf8 {[%emt 0:04:41]} 18. Nf5 {[%emt 0:07:13]} Nxf5 {[%emt 0:03:46]} 19. Rxf5 {[%emt 0:00:05]} Qd8 {[%emt 0:04:36]} 20. Raf1 {[%emt 0:03:38]} Bc8 {[%emt 0:01:04]} 21. R5f2 {[%emt 0:02:01]} Be6 {[%emt 0:01:06]} 22. Bxe6 {[%emt 0:01:09]} Rxe6 {[%emt 0:00:13]} 23. Nf3 {[%emt 0:00:35]} Nh5 {[%emt 0:03:37]} 24. Qh3 {[%emt 0:00:45]} Nf6 {[%emt 0:01:57]} 25. Nh4 {[%emt 0:00:27]} h5 {[%emt 0:01:25]} 26. Nf5 {[%emt 0:02:16]} g6 {[%emt 0:02:40]} 27. Ng3 {[%emt 0:00:43]} bxa4 {[%emt 0:02:23]} 28. Qh4 {[%emt 0:00:42]} Kg7 {[%emt 0:00:44]} 29. Qg5 {[%emt 0:00:20]} Qe7 {[%emt 0:01:30]} 30. Nxh5+ {[%emt 0:00:11]} Nxh5 {[%emt 0:00:17]} 31. Qxe7 {[%emt 0:01:24]} Rxe7 {[%emt 0:00:23]} 32. g4 {[%emt 0:00:11]} Rh8 {[%emt 0:01:07]} 33. gxh5 {[%emt 0:00:22]} Rxh5 {[%emt 0:00:38]} 34. Ra1 {[%emt 0:00:40]} c6 {[%emt 0:01:28]} 35. Rxa4 {[%emt 0:00:21]} Ra7 {[%emt 0:00:15]} 36. Rfa2 {[%emt 0:00:25]} Rh3 {[%emt 0:00:16]} 37. Rxa6 {[%emt 0:00:30]} Rxa6 {[%emt 0:00:40]} 38. Rxa6 {[%emt 0:00:05]} Rxe3 {[%emt 0:00:15]} 39. Rxc6 {[%emt 0:00:08]} Rxd3 {[%emt 0:00:28]} 40. b5 {[%emt 0:00:26]} Rd1+ {[%emt 0:00:46]} 41. Kf2 {[%emt 0:15:13]} Rb1 {[%emt 0:15:55]} 42. c4 {[%emt 0:00:23]} Rb4 {[%emt 0:02:05]} 43. b6 {[%emt 0:00:00]} Kf8 {[%emt 0:00:00]} 44. Rxd6 {[%emt 0:00:00]} Rxc4 {[%emt 0:00:00]} 45. b7 {[%emt 0:00:00]} 1-0

[Event "GER-ch Youth-ODJM 2022 B"]
[Site "Willingen"]
[Date "2022.06.11"]
[Round "9.8"]
[White "Stülcken, Philipp"]
[Black "Ermert, Karl Hans Ragnar"]
[Result "1-0"]
[ECO "A04"]
[WhiteElo "1513"]
[BlackElo "1662"]
[Annotator "NA RC COMBH"]
[PlyCount "57"]
[EventDate "2022.06.05"]
[EventType "swiss"]
[EventRounds "9"]
[EventCountry "GER"]
[SourceTitle "playchess.com"]
[Source "ChessBase"]
[SourceQuality "1"]
[TimeControl "40/4500+30:900+30"]

1. Nf3 {[%emt 0:00:00]} f5 {[%emt 0:00:00]} 2. e3 {[%emt 0:00:00]} Nf6 {[%emt 0:00:00]} 3. b3 {[%emt 0:00:00]} d6 {[%emt 0:00:00]} 4. d4 {[%emt 0:00:00]} e6 {[%emt 0:00:00]} 5. Bb2 {[%emt 0:00:00]} Be7 {[%emt 0:00:00]} 6. Be2 {[%emt 0:00:00]} O-O {[%emt 0:00:00]} 7. O-O {[%emt 0:00:00]} Ne4 {[%emt 0:00:00]} 8. Nbd2 {[%emt 0:00:00]} Nd7 {[%emt 0:00:00]} 9. c4 {[%emt 0:00:00]} b6 {[%emt 0:00:00]} 10. d5 {[%emt 0:09:33]} Nxd2 {[%emt 0:00:00]} 11. Qxd2 {[%emt 0:00:23]} e5 {[%emt 0:00:00]} 12. b4 {[%emt 0:03:08]} Qe8 {[%emt 0:00:00]} 13. Rac1 {[%emt 0:05:31]} Nf6 {[%emt 0:00:00]} 14. Qc2 {[%emt 0:02:06]} a5 {[%emt 0:00:00]} 15. a3 {[%emt 0:00:38]} Ng4 {[%emt 0:04:04]} 16. h3 {[%emt 0:03:43]} Qh5 {[%emt 0:01:36]} 17. Nxe5 {[%emt 0:10:01]} dxe5 {[%emt 0:04:38]} 18. Bxe5 {[%emt 0:03:27]} Bd6 {[%emt 0:26:41]} 19. Bxd6 {[%emt 0:19:50]} cxd6 {[%emt 0:00:08]} 20. hxg4 {[%emt 0:10:39]} fxg4 {[%emt 0:01:18]} 21. Qe4 {[%emt 0:06:44]} Rf6 {[%emt 0:07:54]} 22. g3 {[%emt 0:00:31]} axb4 {[%emt 0:11:17]} 23. axb4 {[%emt 0:02:36]} Ra2 {[%emt 0:00:30]} 24. Bd1 {[%emt 0:01:06]} Bf5 {[%emt 0:03:29]} 25. Qe7 {[%emt 0:02:46]} Bd3 {[%emt 0:05:14]} 26. Qd8+ {[%emt 0:00:22]} Rf8 {[%emt 0:00:22]} 27. Qxd6 {[%emt 0:00:10]} Qh3 {[%emt 0:06:05]} 28. Qe6+ {[%emt 0:00:10]} Kh8 {[%emt 0:00:26]} 29. Bxg4 {[%emt 0:00:10]} 1-0

[Event "GER-ch Youth-ODJM 2022 B"]
[Site "Willingen"]
[Date "2022.06.11"]
[Round "9.9"]
[White "Ruddat, Jarne"]
[Black "Tryfon, Konstantin"]
[Result "1-0"]
[ECO "C55"]
[WhiteElo "1415"]
[BlackElo "1634"]
[Annotator "NA RC COMBH"]
[PlyCount "57"]
[EventDate "2022.06.05"]
[EventType "swiss"]
[EventRounds "9"]
[EventCountry "GER"]
[SourceTitle "playchess.com"]
[Source "ChessBase"]
[SourceQuality "1"]
[TimeControl "40/4500+30:900+30"]

1. e4 {[%emt 0:00:00]} e5 {[%emt 0:00:00]} 2. Nf3 {[%emt 0:00:00]} Nc6 {[%emt 0:00:00]} 3. d4 {[%emt 0:00:00]} exd4 {[%emt 0:00:00]} 4. Bc4 {[%emt 0:00:00]} Nf6 {[%emt 0:00:00]} 5. O-O {[%emt 0:00:00]} Be7 {[%emt 0:00:00]} 6. Nxd4 {[%emt 0:00:00]} O-O {[%emt 0:00:00]} 7. Nc3 {[%emt 0:00:00]} d6 {[%emt 0:00:00]} 8. h3 {[%emt 0:00:00]} Ne5 {[%emt 0:00:00]} 9. Be2 {[%emt 0:00:00]} c6 {[%emt 0:00:00]} 10. Nf3 {[%emt 0:00:00]} Qc7 {[%emt 0:00:00]} 11. Bf4 {[%emt 0:00:00]} Re8 {[%emt 0:00:00]} 12. Qd4 {[%emt 0:00:41]} Nfd7 {[%emt 0:02:56]} 13. Rfd1 {[%emt 0:01:22]} b5 {[%emt 0:01:58]} 14. b4 {[%emt 0:05:33]} Bb7 {[%emt 0:00:56]} 15. a4 {[%emt 0:01:59]} a6 {[%emt 0:03:33]} 16. a5 {[%emt 0:01:37]} c5 {[%emt 0:02:13]} 17. bxc5 {[%emt 0:00:32]} dxc5 {[%emt 0:00:04]} 18. Bxe5 {[%emt 0:00:14]} Nxe5 {[%emt 0:10:50]} 19. Qxe5 {[%emt 0:00:18]} Qxe5 {[%emt 0:00:05]} 20. Nxe5 {[%emt 0:00:04]} Bf6 {[%emt 0:00:05]} 21. f4 {[%emt 0:00:03]} g5 22. g3 {[%emt 0:00:47]} Bg7 {[%emt 0:06:55]} 23. Nd5 {[%emt 0:01:50]} Rad8 {[%emt 0:02:40]} 24. Ra3 {[%emt 0:04:45]} Bxd5 {[%emt 0:00:23]} 25. Rxd5 {[%emt 0:00:13]} Rxd5 {[%emt 0:00:04]} 26. exd5 {[%emt 0:00:07]} f6 {[%emt 0:01:08]} 27. Bh5 {[%emt 0:00:05]} Rd8 {[%emt 0:00:20]} 28. Nc6 Kf8 {[%emt 0:00:39]} 29. Nxd8 {[%emt 0:02:27]} 1-0

[Event "GER-ch Youth-ODJM 2022 B"]
[Site "Willingen"]
[Date "2022.06.11"]
[Round "9.10"]
[White "John, Niklas"]
[Black "Götz, Timon"]
[Result "1-0"]
[ECO "B48"]
[WhiteElo "1563"]
[BlackElo "1558"]
[Annotator "NA RC COMBH"]
[PlyCount "63"]
[EventDate "2022.06.05"]
[EventType "swiss"]
[EventRounds "9"]
[EventCountry "GER"]
[SourceTitle "playchess.com"]
[Source "ChessBase"]
[SourceQuality "1"]
[TimeControl "40/4500+30:900+30"]

1. e4 {[%emt 0:00:00]} c5 {[%emt 0:00:00]} 2. Nf3 {[%emt 0:00:00]} e6 {[%emt 0:00:00]} 3. d4 {[%emt 0:00:00]} cxd4 {[%emt 0:00:00]} 4. Nxd4 {[%emt 0:00:00]} Nc6 {[%emt 0:00:00]} 5. Be3 {[%emt 0:00:00]} Qc7 {[%emt 0:00:00]} 6. Nc3 {[%emt 0:00:00]} a6 {[%emt 0:00:00]} 7. f3 {[%emt 0:00:00]} Nf6 {[%emt 0:00:00]} 8. Qd2 {[%emt 0:00:00]} b5 {[%emt 0:00:00]} 9. O-O-O {[%emt 0:00:00]} Bb7 {[%emt 0:00:00]} 10. g4 {[%emt 0:02:13]} b4 {[%emt 0:02:22]} 11. Nce2 {[%emt 0:02:44]} Be7 {[%emt 0:01:28]} 12. h4 {[%emt 0:06:39]} Rc8 {[%emt 0:01:51]} 13. Kb1 {[%emt 0:05:14]} d5 {[%emt 0:00:37]} 14. g5 {[%emt 0:03:46]} Nh5 {[%emt 0:13:57]} 15. exd5 {[%emt 0:01:30]} Nxd4 {[%emt 0:01:05]} 16. Nxd4 {[%emt 0:02:03]} Bxd5 {[%emt 0:00:40]} 17. Bxa6 {[%emt 0:08:12]} Qa5 {[%emt 0:05:12]} 18. Bb5+ {[%emt 0:02:25]} Kf8 {[%emt 0:03:38]} 19. a4 {[%emt 0:04:19]} f6 {[%emt 0:15:35]} 20. Rhg1 {[%emt 0:13:21]} Kf7 {[%emt 0:01:56]} 21. Qf2 {[%emt 0:20:17]} g6 {[%emt 0:03:00]} 22. Nb3 {[%emt 0:02:18]} Qc7 {[%emt 0:02:35]} 23. Bb6 {[%emt 0:01:50]} Qe5 {[%emt 0:02:30]} 24. Rge1 {[%emt 0:02:24]} Qf5 {[%emt 0:01:34]} 25. Nd4 {[%emt 0:01:19]} Qh3 {[%emt 0:03:22]} 26. Bd7 {[%emt 0:02:19]} Bc5 {[%emt 0:03:05]} 27. Bxc5 {[%emt 0:01:08]} Rxc5 {[%emt 0:00:16]} 28. Nxe6 {[%emt 0:00:47]} Qxf3 {[%emt 0:05:27]} 29. Qxc5 {[%emt 0:03:01]} Be4 {[%emt 0:01:31]} 30. Nd4 {[%emt 0:01:08]} Qg2 {[%emt 0:01:20]} 31. Be6+ {[%emt 0:00:13]} Kg7 {[%emt 0:00:37]} 32. Qe7# 1-0

[Event "GER-ch Youth-ODJM 2022 B"]
[Site "Willingen"]
[Date "2022.06.11"]
[Round "9.11"]
[White "Brunner, Alexander"]
[Black "Hofmann, Benjamin"]
[Result "0-1"]
[ECO "D00"]
[WhiteElo "1991"]
[BlackElo "1483"]
[Annotator "TA"]
[PlyCount "64"]
[EventDate "2022.06.05"]
[EventType "swiss"]
[EventRounds "9"]
[EventCountry "GER"]
[SourceTitle "playchess.com"]
[Source "ChessBase"]
[SourceQuality "1"]
[TimeControl "40/4500+30:900+30"]

{[%evp 9,64,64,57,-350,-349,-377,-373,-390,-364,-363,-329,-326,-258,-255,-254,-245,-246,-255,-238,-277,-285,-297,-272,-397,-298,-307,-260,-420,-368,-358,-295,-411,-359,-704,-698,-1418,-1421,-1260,-1242,-1204,-1147,-1486,-1043,-974,-1013,-922,-820,-1312,-1236,-29981,-29972,-3231,-2252,-29988,-29988,-29988,-29987]} 1. d4 {[%emt 0:00:00]} d5 {[%emt 0:00:00]} 2. Nc3 {[%emt 0:00:00]} e6 {[%emt 0:00:00]} 3. Bf4 {[%emt 0:00:00]} c6 {[%emt 0:00:00]} 4. e3 {[%emt 0:00:00]} Bd6 {[%emt 0:00:00] [#]} 5. Qg4 $146 {[%emt 0:00:00]} ({Predecessor:} 5. Bd3 Bxf4 6. exf4 Qc7 7. g3 Qb6 8. Nge2 Qxb2 9. O-O Ne7 10. Re1 g6 11. h3 {0-1 (56) Buksa,N (2419)-Ponce Cano,A (2165) Chess.com INT 2021}) 5... g6 {[%emt 0:00:00][%cal Oe6e5] [#] ...e5! is the strong threat.} 6. Nf3 {[%emt 0:00:00][%mdl 8192] Inhibits e5. D00: 1 d4 d5: Unusual lines.} (6. Qg3 $14 {stays ahead.} Bxf4 7. Qxf4) 6... e5 $1 $19 {[%emt 0:00:00]} 7. Qg3 {[%emt 0:00:00]} exf4 {[%emt 0:00:00]} 8. exf4 {[%emt 0:00:00] Black is winning.} Nf6 {[%emt 0:00:00][%cal Bg8f6,Bf6h5,Bh5g7][%mdl 32] Hoping for ...Nh5.} 9. Ne5 {[%emt 0:00:00]} O-O {[%emt 0:00:00] aiming for ...Nh5.} 10. O-O-O {[%emt 0:00:00]} Bxe5 {[%emt 0:02:28]} 11. fxe5 {[%emt 0:00:00]} Nh5 {[%emt 0:00:40]} 12. Qe3 {[%emt 0:00:00]} b5 {[%emt 0:00:53]} 13. f3 {[%emt 0:00:00]} f5 {[%emt 0:02:38][%cal Bf7f5,Bf5f4][%mdl 32] Inhibits g4.} 14. Be2 {[%emt 0:00:21]} f4 {[%emt 0:00:41]} 15. Qf2 {[%emt 0:00:55]} a5 {[%emt 0:00:58][%cal Ba7a5,Ba5a4][%mdl 32]} 16. g4 {[%emt 0:01:05]} (16. Bd3 {is a better defense.}) 16... Ng7 {[%emt 0:00:36]} 17. Bd3 {[%emt 0:01:53]} a4 {[%emt 0:00:39]} 18. g5 $2 {[%emt 0:01:23]} (18. Nb1) 18... Bf5 {[%emt 0:01:16]} 19. h4 {[%emt 0:00:53]} Nh5 {[%emt 0:00:22]} 20. Qh2 {[%emt 0:01:44]} Qa5 {[%emt 0:01:17] [#] Threatens to win with ...a3.} 21. Rd2 $2 {[%emt 0:01:20]} (21. Bxf5 Rxf5 22. Qd2) 21... a3 {[%emt 0:00:25] ( -> ...axb2+)} 22. Nd1 {[%emt 0:01:33]} axb2+ {[%emt 0:00:19]} 23. Nxb2 {[%emt 0:00:58]} Qxa2 {[%emt 0:00:08][%cal Ra2a1]} 24. c3 {[%emt 0:00:20]} Ra3 {[%emt 0:00:33]} 25. Rc2 {[%emt 0:00:49]} Bxd3 {[%emt 0:03:33]} 26. Nxd3 {[%emt 0:00:09]} Qc4 {[%emt 0:00:30][%csl LRc3,LRd3]} 27. Kd2 {[%emt 0:00:54]} Na6 {[%emt 0:02:01]} 28. e6 {[%emt 0:00:53]} b4 {[%emt 0:01:28][%cal Bb5b4,Bb4c3][%mdl 32]} 29. Qe2 {[%emt 0:04:10]} bxc3+ {[%emt 0:00:14]} 30. Ke1 {[%emt 0:00:19]} Ra1+ {[%emt 0:00:11]} 31. Kf2 {[%emt 0:00:16]} Rxh1 {[%emt 0:00:08]} 32. Kg2 {[%emt 0:00:08]} Ng3 {[%emt 0:01:57] White did not feel at home in the position after the opening.  Weighted Error Value: White=1.59/Black=0.44} 0-1

[Event "GER-ch Youth-ODJM 2022 B"]
[Site "Willingen"]
[Date "2022.06.11"]
[Round "9.12"]
[White "Andrade, Ruben"]
[Black "Kullmann, Theo"]
[Result "1-0"]
[ECO "C41"]
[WhiteElo "1694"]
[BlackElo "1506"]
[Annotator "NA RC COMBH"]
[PlyCount "77"]
[EventDate "2022.06.05"]
[EventType "swiss"]
[EventRounds "9"]
[EventCountry "GER"]
[SourceTitle "playchess.com"]
[Source "ChessBase"]
[SourceQuality "1"]
[TimeControl "40/4500+30:900+30"]

1. e4 {[%emt 0:00:00]} e5 {[%emt 0:00:00]} 2. Nf3 {[%emt 0:00:00]} d6 {[%emt 0:00:00]} 3. Bc4 {[%emt 0:00:00]} Nf6 {[%emt 0:00:00]} 4. d3 {[%emt 0:00:00]} Be7 {[%emt 0:00:00]} 5. O-O {[%emt 0:00:00]} O-O {[%emt 0:00:00]} 6. a4 {[%emt 0:00:00]} Nc6 {[%emt 0:00:00]} 7. h3 {[%emt 0:00:00]} Be6 {[%emt 0:00:00]} 8. Re1 {[%emt 0:00:00]} Bxc4 {[%emt 0:00:00]} 9. dxc4 {[%emt 0:00:00]} h6 {[%emt 0:00:14]} 10. Nbd2 {[%emt 0:00:00]} Qd7 {[%emt 0:01:21]} 11. Nf1 {[%emt 0:00:00]} Bd8 {[%emt 0:06:27]} 12. Ng3 {[%emt 0:00:00]} Ne7 {[%emt 0:00:28]} 13. Nh4 {[%emt 0:00:00]} Qe6 {[%emt 0:03:54]} 14. b3 {[%emt 0:06:15]} c6 {[%emt 0:00:56]} 15. Qe2 {[%emt 0:07:15]} Ba5 {[%emt 0:05:30]} 16. Bd2 {[%emt 0:00:33]} Bxd2 {[%emt 0:00:46]} 17. Qxd2 {[%emt 0:00:02]} Rfd8 {[%emt 0:01:13]} 18. Qc3 {[%emt 0:06:32]} Rac8 {[%emt 0:04:25]} 19. Rad1 {[%emt 0:08:52]} Nd7 {[%emt 0:07:45]} 20. Ngf5 {[%emt 0:06:59]} Nxf5 {[%emt 0:02:40]} 21. Nxf5 {[%emt 0:00:32]} d5 {[%emt 0:00:36]} 22. Qg3 {[%emt 0:00:49]} Qf6 {[%emt 0:02:27]} 23. cxd5 {[%emt 0:00:42]} cxd5 {[%emt 0:02:06]} 24. Rxd5 {[%emt 0:00:30]} Nf8 {[%emt 0:05:08]} 25. c4 {[%emt 0:11:18]} Ng6 {[%emt 0:01:22]} 26. Red1 {[%emt 0:02:59]} Rxd5 {[%emt 0:02:27]} 27. cxd5 {[%emt 0:00:35]} Ne7 {[%emt 0:03:11]} 28. Nxe7+ {[%emt 0:09:41]} Qxe7 {[%emt 0:00:08]} 29. d6 {[%emt 0:00:41]} Qe6 {[%emt 0:02:29]} 30. d7 {[%emt 0:00:18]} Rd8 {[%emt 0:00:48]} 31. Qc3 {[%emt 0:00:26]} Kh7 {[%emt 0:05:10]} 32. Qc7 {[%emt 0:10:54]} Qxb3 {[%emt 0:01:37]} 33. Qxd8 {[%emt 0:00:17]} Qxd1+ {[%emt 0:00:11]} 34. Kh2 {[%emt 0:00:03]} Qd2 {[%emt 0:00:21]} 35. Qc8 {[%emt 0:00:37]} Qxf2 {[%emt 0:02:45]} 36. d8=Q {[%emt 0:00:13]} Qf4+ {[%emt 0:00:46]} 37. Kg1 {[%emt 0:00:07]} Qe3+ {[%emt 0:00:09]} 38. Kf1 {[%emt 0:00:08]} Qf4+ {[%emt 0:00:34]} 39. Kg1 {[%emt 0:00:34]} 1-0